bitfinex-derivatives/quotes_ETHF0:USTF0_20251213
["timestamp","ask_amount","ask_price","bid_price","bid_amount"]
[1765656276180,3.0628,3108.0,3107.9,1.1203194]
[1765656279583,3.0628,3108.0,3107.9,0.7938194]
[1765656282680,3.0628,3108.0,3107.9,0.4171194]
[1765656283887,3.0628,3108.0,3107.9,0.6694194]
[1765656286088,1.8929,3108.0,3107.9,0.8731194]
[1765656286289,0.7118,3108.0,3107.9,0.8731194]
[1765656288590,1.8929,3108.0,3107.9,0.8731194]
[1765656291488,0.7118,3108.0,3107.9,0.8731194]
[1765656296497,7.69e-06,3108.0,3107.9,0.8731194]
[1765656296703,6.1473,3108.5,3108.4,0.96822]
[1765656300314,6.1473,3108.5,3108.4,0.16082]
[1765656308319,2.8645,3108.0,3107.9,0.2562694]
[1765656308615,2.8645,3108.0,3107.9,1.1965694]
[1765656308816,2.8645,3108.0,3107.9,0.4171194]
[1765656309615,2.8645,3108.0,3107.9,1.3458194]
[1765656310517,2.8645,3108.0,3107.9,2.2886194]
[1765656313022,2.8645,3108.0,3107.9,1.3458194]
[1765656314224,2.8645,3108.0,3107.9,0.4171194]
[1765656315425,2.8645,3108.0,3107.9,1.3137194]
[1765656321631,2.8645,3108.0,3107.9,0.4171194]
[1765656322227,2.8645,3108.0,3107.9,1.2343194]
[1765656322824,2.8645,3108.0,3107.9,0.4171194]
[1765656325729,2.8645,3108.0,3107.9,1.2120194]
[1765656326635,2.8645,3108.0,3107.9,0.4171194]
[1765656338244,2.8645,3108.0,3107.9,0.41346365]
[1765656338451,2.0207,3107.7,3107.6,0.16568447]
[1765656339450,2.0207,3107.7,3107.6,0.1687558]
[1765656339638,2.0207,3107.7,3107.6,0.50344078]
[1765656340039,2.0207,3107.7,3107.6,1.55374078]
[1765656345356,2.0207,3107.7,3107.6,0.50344078]
[1765656361676,2.0207,3107.7,3107.6,0.1687558]
[1765656361871,2.4334,3107.5,3107.4,3.2078]
[1765656362377,2.4334,3107.5,3107.4,3.7254862]
[1765656362979,2.4334,3107.5,3107.4,3.72778592]
[1765656368579,2.4334,3107.5,3107.4,0.51998592]
[1765656368780,5.6412,3107.5,3107.4,0.16316972]
[1765656371980,1.8816,3107.2,3107.1,0.00482447]
[1765656372478,1.8816,3107.2,3107.1,0.36096963]
[1765656372678,1.8816,3107.2,3107.1,0.00482447]
[1765656373079,1.8816,3107.2,3107.1,0.00719412]
[1765656373681,1.8816,3107.2,3107.1,0.16808412]
[1765656374279,1.8816,3107.2,3107.1,1.10988412]
[1765656374576,1.8816,3107.2,3107.1,1.47130985]
[1765656374782,1.8816,3107.2,3107.1,0.52950985]
[1765656382891,1.8816,3107.2,3107.1,1.47130985]
[1765656384191,1.8816,3107.2,3107.1,0.52950985]
[1765656385095,1.8816,3107.2,3107.1,1.39580985]
[1765656386190,1.8816,3107.2,3107.1,0.52950985]
[1765656388197,1.8816,3107.2,3107.1,0.16808412]
[1765656391095,1.8816,3107.2,3107.1,2.00308412]
[1765656391288,1.8816,3107.2,3107.1,2.36626204]
[1765656392495,1.8816,3107.2,3107.1,1.45276204]
[1765656400900,1.8816,3107.2,3107.1,2.36626204]
[1765656401493,0.9278,3107.2,3107.1,2.36626204]
[1765656401694,5.51612447,3107.5,3107.4,1.04267]
[1765656405901,5.51612447,3107.5,3107.4,0.16087]
[1765656406507,5.51612447,3107.5,3107.4,0.99837]
[1765656406803,5.51612447,3107.5,3107.4,1.82717]
[1765656407004,5.51612447,3107.5,3107.4,0.99837]
[1765656412410,5.51612447,3107.5,3107.4,0.16087]
[1765656426722,1.6882,3107.2,3107.1,0.00719412]
[1765656426931,1.6882,3106.7,3106.6,3.9796]
[1765656427124,1.6882,3106.7,3106.6,4.799]
[1765656427526,1.6882,3106.7,3106.6,5.17922571]
[1765656427824,1.69129477,3106.7,3106.6,5.18243499]
[1765656428523,1.69129477,3106.7,3106.6,5.34334499]
[1765656429329,0.95948342,3106.7,3106.6,5.34334499]
[1765656429826,0.11888342,3106.7,3106.6,5.34334499]
[1765656432834,0.00309477,3106.7,3106.6,5.34334499]
[1765656446036,0.78369477,3106.7,3106.6,5.34334499]
[1765656446338,1.59339477,3106.7,3106.6,5.34334499]
[1765656447038,1.59339477,3106.7,3106.6,2.13554499]
[1765656449330,1.59339477,3106.7,3106.6,1.31614499]
[1765656449941,1.59339477,3106.7,3106.6,0.16411928]
[1765656491576,1.59339477,3106.7,3106.6,0.89361928]
[1765656491975,1.59339477,3106.7,3106.6,0.16411928]
[1765656496877,1.59339477,3106.7,3106.6,1.65231928]
[1765656497377,1.59339477,3106.7,3106.6,0.89361928]
[1765656498077,1.59339477,3106.7,3106.6,0.16411928]
[1765656513290,1.59339477,3106.7,3106.6,0.88651928]
[1765656513688,1.59339477,3106.7,3106.6,0.16411928]
[1765656516290,1.5125,3106.4,3106.3,0.00482447]
[1765656516492,4.7203,3106.4,3106.3,0.72722447]
[1765656517184,4.7203,3106.4,3106.3,0.72999048]
[1765656518990,4.7203,3106.4,3106.3,0.89092048]
[1765656521093,4.7203,3106.4,3106.3,0.16852048]
[1765656522792,4.7203,3106.4,3106.3,0.89092048]
[1765656522993,4.7203,3106.4,3106.3,1.60252048]
[1765656529495,4.7203,3106.4,3106.3,0.89092048]
[1765656530194,4.7203,3106.4,3106.3,0.16852048]
[1765656545408,4.7203,3106.4,3106.3,0.89422048]
[1765656546312,4.7203,3106.4,3106.3,0.16852048]
[1765656549108,4.7203,3106.4,3106.3,0.89422048]
[1765656550717,4.6846,3106.4,3106.3,1.63372048]
[1765656554923,3.2078,3106.4,3106.3,1.63372048]
[1765656556116,0.00309477,3106.7,3106.6,1.62611]
[1765656557023,0.73669477,3106.7,3106.6,1.62611]
[1765656560326,0.00309477,3106.7,3106.6,1.62611]
[1765656566131,0.73959477,3106.7,3106.6,1.62611]
[1765656568631,1.50679477,3106.7,3106.6,0.16091]
[1765656568830,1.50679477,3106.7,3106.6,0.85861]
[1765656569030,1.50679477,3106.7,3106.6,1.56091]
[1765656569732,0.00309477,3106.7,3106.6,1.56091]
[1765656570635,0.73959477,3106.7,3106.6,1.56091]
[1765656580535,1.50679477,3106.7,3106.6,1.56091]
[1765656583632,0.73959477,3106.7,3106.6,1.56091]
[1765656591242,1.50679477,3106.7,3106.6,1.56091]
[1765656592545,0.73959477,3106.7,3106.6,1.56091]
[1765656598549,1.43959477,3106.7,3106.6,1.56091]
[1765656601747,1.43959477,3106.7,3106.6,0.85861]
[1765656602051,1.43959477,3106.7,3106.6,0.16091]
[1765656608959,1.43959477,3106.7,3106.6,1e-05]
[1765656609159,1.4208,3106.4,3106.3,0.00759048]
[1765656609457,4.6286,3106.4,3106.3,0.00759048]
[1765656616563,1.4208,3106.4,3106.3,0.00759048]
[1765656616763,4.6286,3106.4,3106.3,0.00759048]
[1765656630682,4.6286,3106.4,3106.3,0.16852048]
[1765656647986,4.6286,3106.4,3106.3,1.61402048]
[1765656648580,4.6286,3106.4,3106.3,0.86782048]
[1765656650297,4.6286,3106.4,3106.3,0.16852048]
[1765656656993,4.6286,3106.4,3106.3,0.86912048]
[1765656657200,4.6286,3106.4,3106.3,1.61782048]
[1765656657399,4.6286,3106.4,3106.3,0.86912048]
[1765656657699,4.6286,3106.4,3106.3,0.16852048]
[1765656665401,4.6286,3106.4,3106.3,0.86912048]
[1765656665596,4.6286,3106.4,3106.3,1.61782048]
[1765656665907,3.2078,3106.4,3106.3,1.61782048]
[1765656666399,4.6739,3106.4,3106.3,1.61782048]
[1765656666796,3.9412,3106.4,3106.3,1.61782048]
[1765656667396,4.6739,3106.4,3106.3,1.61782048]
[1765656672202,3.9412,3106.4,3106.3,1.61782048]
[1765656672399,3.2078,3106.4,3106.3,1.61782048]
[1765656673506,1.46919477,3106.7,3106.6,1.61021]
[1765656677303,1.46919477,3106.7,3106.6,0.16091]
[1765656681906,1.46919477,3106.7,3106.6,1.61021]
[1765656682105,0.73649477,3106.7,3106.6,1.61021]
[1765656682308,1.46919477,3106.7,3106.6,1.61021]
[1765656682709,0.73649477,3106.7,3106.6,1.61021]
[1765656683113,1.49249477,3106.7,3106.6,1.58821]
[1765656684817,0.73649477,3106.7,3106.6,1.58821]
[1765656685423,0.00309477,3106.7,3106.6,1.58821]
[1765656685716,0.77419477,3106.7,3106.6,1.58821]
[1765656686317,1.54209477,3106.7,3106.6,1.58821]
[1765656686923,0.77419477,3106.7,3106.6,1.58821]
[1765656687723,1.54209477,3106.7,3106.6,1.58821]
[1765656690226,1.54209477,3106.7,3106.6,0.88291]
[1765656692527,1.54209477,3106.7,3106.6,1.60341]
[1765656692729,1.54209477,3106.7,3106.6,0.91241]
[1765656692929,1.54209477,3106.7,3106.6,1.63291]
[1765656696626,1.54209477,3106.7,3106.6,0.91241]
[1765656697935,1.54209477,3106.7,3106.6,1.63291]
[1765656704740,0.77419477,3106.7,3106.6,1.63291]
[1765656704932,0.00309477,3106.7,3106.6,1.63291]
[1765656705338,0.77419477,3106.7,3106.6,1.63291]
[1765656706045,1.54209477,3106.7,3106.6,1.63291]
[1765656707642,0.77419477,3106.7,3106.6,1.63291]
[1765656707838,1.54209477,3106.7,3106.6,1.63291]
[1765656708346,0.77419477,3106.7,3106.6,1.63291]
[1765656712446,0.00309477,3106.7,3106.6,1.63291]
[1765656714850,1.54209477,3106.7,3106.6,0.91241]
[1765656715451,1.54209477,3106.7,3106.6,1.63291]
[1765656715653,0.00309477,3106.7,3106.6,1.63291]
[1765656720458,0.70859477,3106.7,3106.6,1.63291]
[1765656720647,1.45559477,3106.7,3106.6,1.63291]
[1765656720959,0.70859477,3106.7,3106.6,1.63291]
[1765656721656,1.45559477,3106.7,3106.6,1.63291]
[1765656722961,0.70859477,3106.7,3106.6,1.63291]
[1765656726063,0.00309477,3106.7,3106.6,1.63291]
[1765656726359,0.70859477,3106.7,3106.6,1.63291]
[1765656726557,0.00309477,3106.7,3106.6,1.63291]
[1765656734371,1.45559477,3106.7,3106.6,1.63291]
[1765656740578,1.4525,3106.4,3106.3,0.00759048]
[1765656740876,4.6603,3106.4,3106.3,0.00759048]
[1765656800720,1.4457,3106.3,3105.1,3.2078]
[1765656800920,1.3974995,3106.5,3105.6,1.62526]
[1765656800921,1.4457,3105.7,3105.6,1.62526]
[1765656801116,1.4457,3105.7,3105.6,0.16096]
[1765656801524,1.9098,3105.5,3105.4,0.29295061]
[1765656801718,5.1176,3105.5,3105.4,0.00264203]
[1765656801913,5.1176,3105.5,3105.4,1.0074894]
[1765656802118,5.1176,3105.5,3105.4,0.71364203]
[1765656802921,5.1176,3105.5,3105.4,1.46694203]
[1765656803817,5.1176,3105.5,3105.4,0.71364203]
[1765656807734,5.1176,3105.5,3105.4,0.00264203]
[1765656810534,5.1176,3105.5,3105.4,0.73724203]
[1765656813436,5.1176,3105.5,3105.4,0.00264203]
[1765656819533,5.1176,3105.5,3105.4,4.203e-05]
[1765656835253,5.1176,3105.5,3105.4,0.73464203]
[1765656835454,20.0376,3105.5,3105.4,0.73464203]
[1765656835650,18.5919,3105.5,3105.4,4.203e-05]
[1765656840662,3.6719,3105.5,3105.4,4.203e-05]
[1765656840856,9.4296,3105.5,3105.4,0.76064203]
[1765656841763,7.9959,3105.5,3105.4,4.203e-05]
[1765656842964,18.1949,3105.5,3105.4,4.203e-05]
[1765656843166,18.5949,3105.5,3105.4,4.203e-05]
[1765656844563,4.3877,3105.5,3105.4,4.203e-05]
[1765656845266,3.6719,3105.5,3105.4,4.203e-05]
[1765656845968,5.1056,3105.5,3105.4,0.76064203]
[1765656846770,5.1056,3105.5,3105.4,1.52844203]
[1765656848167,5.1056,3105.5,3105.4,0.76064203]
[1765656848674,5.1056,3105.5,3105.4,1.52844203]
[1765656849474,5.1056,3105.5,3105.4,0.76064203]
[1765656849974,5.1056,3105.5,3105.4,1.52844203]
[1765656850470,5.1056,3105.5,3105.4,0.76064203]
[1765656851779,3.6719,3105.5,3105.4,4.203e-05]
[1765656862286,5.1056,3105.5,3105.4,1.52844203]
[1765656862980,5.1056,3105.5,3105.4,0.76064203]
[1765656863285,19.3108,3105.5,3105.4,1.65472203]
[1765656863487,20.0475,3105.5,3105.4,1.65472203]
[1765656864487,20.0475,3105.5,3105.4,0.92162203]
[1765656870486,20.0475,3105.5,3105.4,0.16102203]
[1765656884101,20.0475,3105.5,3105.4,0.89082203]
[1765656885712,20.0475,3105.5,3105.4,0.16102203]
[1765656886110,5.1265,3105.5,3105.4,1.65662203]
[1765656886405,10.0425,3105.5,3105.4,1.65662203]
[1765656891510,5.1265,3105.5,3105.4,1.65662203]
[1765656892315,3.9257,3105.5,3105.4,1.65662203]
[1765656892814,4.6788,3105.5,3105.4,1.65662203]
[1765656893204,5.1219,3105.5,3105.4,1.65662203]
[1765656899910,5.1219,3105.5,3105.4,0.89082203]
[1765656906827,5.1219,3105.5,3105.4,0.16102203]
[1765656907225,5.1219,3105.5,3105.4,0.93182203]
[1765656908424,3.2078,3105.5,3105.4,1.69542203]
[1765656908824,3.947,3105.5,3105.4,1.69542203]
[1765656909931,5.1368,3105.5,3105.4,1.69542203]
[1765656910727,5.1368,3105.5,3105.4,0.16102203]
[1765656942644,3.9143,3106.1,3106.0,1.4872]
[1765656942829,3.2078,3106.5,3106.4,1.64812]
[1765656946347,0.00309477,3106.7,3106.6,1.64811]
[1765656948840,0.70959477,3106.7,3106.6,1.64811]
[1765656954451,1.42829477,3106.7,3106.6,1.64811]
[1765656958656,0.70959477,3106.7,3106.6,1.64811]
[1765656959054,1.46579477,3106.7,3106.6,1.64811]
[1765656994973,1.46579477,3106.7,3106.6,0.16091]
[1765657002488,1.46579477,3106.7,3106.6,1.61741]
[1765657005785,1.46579477,3106.7,3106.6,0.88881]
[1765657005979,1.46579477,3106.7,3106.6,0.16091]
[1765657007681,1.46579477,3106.7,3105.9,3.2078]
[1765657007682,1.8357,3106.0,3105.9,3.9357]
[1765657008486,1.8357,3106.0,3105.9,4.09665]
[1765657009188,1.8357,3106.0,3105.9,3.36875]
[1765657010591,1.8357,3106.0,3105.9,4.09665]
[1765657013887,4.6129,3106.3,3106.2,1.61743]
[1765657014994,3.2078,3106.3,3106.2,1.61743]
[1765657016889,4.61789477,3106.7,3106.6,1.61581]
[1765657018397,1.41009477,3106.7,3106.6,1.61581]
[1765657018696,0.00309477,3106.7,3106.6,1.61581]
[1765657023197,0.70829477,3106.7,3106.6,1.61581]
[1765657023386,0.00309477,3106.7,3106.6,7.61581]
[1765657025286,0.00309477,3106.7,3106.6,1.61581]
[1765657025491,0.00309477,3106.7,3106.6,7.61581]
[1765657025692,0.00309477,3106.7,3106.6,1.61581]
[1765657028490,3.913,3107.5,3107.4,1.4549]
[1765657029600,3.91554635,3107.5,3107.4,1.61577]
[1765657030504,3.21034635,3107.5,3107.4,1.888467]
[1765657031803,3.91554635,3107.5,3107.4,1.888467]
[1765657032003,4.61734635,3107.5,3107.4,1.61577]
[1765657033000,4.61734635,3107.5,3107.4,1.89271659]
[1765657035206,3.91554635,3107.5,3107.4,1.89271659]
[1765657036704,3.91554635,3107.5,3107.4,1.61577]
[1765657036913,5.07394635,3107.5,3107.4,1.61577]
[1765657037312,4.61734635,3107.5,3107.4,1.61577]
[1765657037518,3.91554635,3107.5,3107.4,1.61577]
[1765657038306,4.61734635,3107.5,3107.4,1.61577]
[1765657039417,4.61734635,3107.5,3107.4,1.88700704]
[1765657039712,3.21034635,3107.5,3107.4,1.61577]
[1765657040014,3.91554635,3107.5,3107.4,1.61577]
[1765657040814,3.91554635,3107.5,3107.4,1.89143518]
[1765657041714,4.61734635,3107.5,3107.4,1.89143518]
[1765657041916,3.91554635,3107.5,3107.4,1.89143518]
[1765657043917,4.61734635,3107.5,3107.4,1.89143518]
[1765657044417,3.91554635,3107.5,3107.4,1.89143518]
[1765657047017,4.61784635,3107.5,3107.4,1.89143518]
[1765657047219,3.91554635,3107.5,3107.4,1.89143518]
[1765657048620,4.61784635,3107.5,3107.4,1.89143518]
[1765657049921,5.04714635,3107.5,3107.4,0.43653518]
[1765657050121,5.04714635,3107.5,3107.4,1.15743518]
[1765657051820,5.04714635,3107.5,3107.4,0.43653518]
[1765657067834,5.04714635,3107.5,3107.4,0.16087]
[1765657074434,1.83934635,3107.5,3107.4,0.16087]
[1765657074637,5.04714635,3107.5,3107.4,0.16087]
[1765657142786,3.63964635,3107.5,3106.7,3.2078]
[1765657142991,3.63964635,3107.5,3106.7,4.6654]
[1765657142992,1.4223,3106.8,3106.7,4.6654]
[1765657144483,1.4223,3106.8,3106.7,4.82631]
[1765657144687,0.7101,3106.8,3106.7,5.09192162]
[1765657144885,1.86,3107.0,3106.9,1.6185]
[1765657150302,1.4223,3107.0,3106.9,1.6185]
[1765657154605,1.86,3107.0,3106.9,0.8715]
[1765657157406,1.86,3107.0,3106.9,0.1609]
[1765657159702,5.0678,3107.0,3106.9,0.1609]
[1765657181030,5.0678,3107.0,3106.9,1.6632]
[1765657182122,5.0678,3107.0,3106.9,0.9306]
[1765657186233,1.86,3107.0,3106.9,0.9306]
[1765657186423,5.0678,3107.0,3106.9,0.9306]
[1765657188633,5.0678,3107.0,3106.9,0.1609]
[1765657201543,1.4775,3106.5,3106.4,1.52922447]
[1765657201748,3.2078,3106.6,3106.5,1.5244]
[1765657202042,3.2078,3106.6,3106.5,1.9471]
[1765657203550,3.2078,3106.6,3106.5,2.10802]
[1765657205944,1.4775,3107.0,3106.9,1.5244]
[1765657206149,1.4775,3107.0,3106.9,1.6853]
[1765657206950,1.9195,3107.0,3106.9,1.6853]
[1765657212954,1.9195,3107.0,3106.9,0.1609]
[1765657213753,1.9195,3107.0,3106.9,0.9134]
[1765657214655,1.9195,3107.0,3106.9,0.1609]
[1765657220558,1.9195,3107.0,3106.9,0.9134]
[1765657227563,1.9195,3107.0,3106.9,1.6441]
[1765657242473,0.732,3107.0,3106.9,1.6441]
[1765657242773,1.5042,3107.0,3106.9,1.6441]
[1765657242973,0.732,3107.0,3106.9,1.6441]
[1765657243775,1.5042,3107.0,3106.9,1.6441]
[1765657259102,1.9438,3107.0,3106.9,0.1609]
[1765657267709,5.1516,3107.0,3106.9,0.1609]
[1765657281331,3.2078,3107.0,3106.9,1.631]
[1765657281520,3.905,3107.0,3106.9,1.631]
[1765657281721,4.6286,3107.0,3106.9,1.631]
[1765657285327,5.0664,3107.0,3106.9,1.631]
[1765657287030,5.0664,3107.0,3106.9,0.864]
[1765657289430,5.0664,3107.0,3106.9,0.1609]
[1765657308840,1.9154,3106.5,3106.4,0.16574447]
[1765657316262,1.9154,3106.5,3106.4,2.447e-05]
[1765657332876,1.9154,3106.5,3106.4,0.90574447]
[1765657333674,1.9154,3106.5,3106.4,0.16094447]
[1765657334478,1.9154,3106.5,3106.4,0.90574447]
[1765657335379,1.9154,3106.5,3106.4,0.16094447]
[1765657335976,1.9154,3106.5,3106.4,0.90574447]
[1765657337176,1.9154,3106.5,3106.4,0.16094447]
[1765657345585,1.9154,3106.5,3106.4,0.90574447]
[1765657346281,1.9154,3106.5,3106.4,0.16094447]
[1765657348885,5.1232,3106.5,3106.4,0.16094447]
[1765657353989,5.1232,3106.5,3106.4,0.92384447]
[1765657354888,5.1232,3106.5,3106.4,0.16094447]
[1765657364900,5.1232,3106.5,3106.4,0.92384447]
[1765657367406,5.1232,3106.5,3106.4,0.16094447]
[1765657379320,1.9154,3106.5,3106.4,0.16094447]
[1765657383327,1.9154,3106.5,3106.4,0.91794447]
[1765657384026,1.9154,3106.5,3106.4,0.16094447]
[1765657402642,1.9154,3106.5,3106.4,1.63294447]
[1765657403143,1.9154,3106.5,3106.4,0.91794447]
[1765657405945,1.4776,3106.5,3106.4,1.62044447]
[1765657406244,0.7133,3106.5,3106.4,1.62044447]
[1765657406446,3.9684,3106.6,3106.5,2.03392]
[1765657406647,4.7185,3106.6,3106.5,2.03392]
[1765657407347,4.7185,3106.6,3106.5,1.60812]
[1765657410149,4.7185,3106.6,3106.5,0.16092]
[1765657414549,1.5107,3106.6,3106.5,0.16092]
[1765657457101,1.5107,3106.6,3106.5,0.91892]
[1765657466609,1.5107,3106.6,3106.5,0.16092]
[1765657470708,1.5107,3106.6,3106.5,0.88702]
[1765657475323,1.5107,3106.6,3106.5,0.16092]
[1765657476124,1.5107,3106.6,3106.5,0.88702]
[1765657478326,1.5107,3106.6,3106.5,0.16092]
[1765657482234,1.5107,3106.6,3106.5,0.88702]
[1765657483032,1.5107,3106.6,3106.5,0.16092]
[1765657483329,1.5107,3106.6,3106.5,0.88702]
[1765657483536,1.5107,3106.6,3106.5,1.58472]
[1765657484131,1.5107,3106.6,3106.5,0.88702]
[1765657489933,1.5107,3106.6,3106.5,0.16092]
[1765657493134,1.5107,3106.6,3106.5,1.58472]
[1765657495636,1.5107,3106.6,3106.5,0.88702]
[1765657500745,1.5107,3106.6,3106.5,0.16092]
[1765657502341,1.5107,3106.6,3106.5,0.88272]
[1765657504235,1.5107,3106.6,3106.5,0.16092]
[1765657525757,1.5107,3106.6,3106.5,1.68002]
[1765657526058,0.7606,3106.6,3106.5,2.12092]
[1765657531366,3.2078,3106.8,3106.7,1.68001]
[1765657531766,3.9517,3106.8,3106.7,1.68001]
[1765657533974,4.6607,3106.8,3106.7,1.68001]
[1765657565087,3.9517,3106.8,3106.7,1.68001]
[1765657565891,3.2078,3106.8,3106.7,1.68001]
[1765657566081,0.43184635,3107.5,3106.7,1.68001]
[1765657566282,4.6745,3107.2,3107.1,0.7399]
[1765657567590,4.6745,3107.2,3107.1,0.90079]
[1765657568092,4.6745,3107.2,3107.1,0.16089]
[1765657570396,4.6745,3107.2,3107.1,0.90079]
[1765657571795,4.6745,3107.2,3107.1,1.66909]
[1765657576186,4.6745,3107.2,3107.1,0.90079]
[1765657576899,4.6745,3107.2,3107.1,0.16089]
[1765657623133,1.4667,3107.2,3107.1,0.16089]
[1765657667873,1.4667,3107.2,3107.1,0.90999]
[1765657668680,1.4667,3107.2,3107.1,1.63839]
[1765657670581,1.4667,3107.2,3107.1,0.90999]
[1765657676186,1.4667,3107.2,3107.1,0.16089]
[1765657702512,1.4667,3107.2,3107.1,0.87509]
[1765657703207,1.4667,3107.2,3107.1,0.16089]
[1765657707521,1.4667,3107.2,3107.1,0.85839]
[1765657708021,1.4667,3107.2,3107.1,0.16089]
[1765657720935,1.4667,3107.2,3107.1,0.85839]
[1765657721333,1.4667,3107.2,3107.1,0.16089]
[1765657728243,1.4667,3107.2,3107.1,0.85839]
[1765657730245,1.4667,3107.2,3107.1,1.63039]
[1765657730442,1.4667,3107.2,3107.1,0.85839]
[1765657732547,1.4667,3107.2,3107.1,1.63039]
[1765657733444,1.4667,3107.2,3107.1,0.85839]
[1765657736850,1.4667,3107.2,3107.1,0.16089]
[1765657743855,1.4667,3107.2,3107.1,0.88499]
[1765657745754,1.4667,3107.2,3107.1,1.62539]
[1765657748254,1.4667,3107.2,3107.1,0.88499]
[1765657750052,3.2078,3107.3,3107.2,1.62538]
[1765657750356,0.00254635,3107.5,3107.4,1.62537]
[1765657750555,0.74934635,3107.5,3107.4,1.62537]
[1765657751058,1.50234635,3107.5,3107.4,1.62537]
[1765657751458,1.94684635,3107.5,3107.4,1.62537]
[1765657751755,1.94684635,3107.5,3107.4,0.88497]
[1765657752159,1.50234635,3107.5,3107.4,1.62537]
[1765657777981,0.74934635,3107.5,3107.4,1.62537]
[1765657778173,0.00482447,3107.8,3107.7,1.68416]
[1765657778380,0.00482447,3107.8,3107.7,4.89196]
[1765657779175,0.00894925,3107.8,3107.7,4.89438188]
[1765657801903,1.48134925,3107.8,3107.7,4.89438188]
[1765657802110,1.48134925,3107.8,3107.7,4.13018188]
[1765657802309,1.48134925,3107.8,3107.7,3.37108188]
[1765657803001,1.48134925,3107.8,3107.7,4.13438188]
[1765657803409,1.48134925,3107.8,3107.7,0.92658188]
[1765657804609,1.48134925,3107.8,3107.7,0.16328188]
[1765657808912,1.4724,3107.4,3107.3,3.2078]
[1765657809616,1.4724,3107.4,3107.3,3.9711]
[1765657809920,0.7054,3107.4,3107.3,4.72619804]
[1765657810219,4.6802,3107.7,3107.6,1.67616]
[1765657813518,1.4724,3107.7,3107.6,1.67616]
[1765657822425,0.7054,3107.7,3107.6,1.67616]
[1765657822720,1.4186,3107.7,3107.6,1.67616]
[1765657828335,0.00894925,3107.8,3107.7,1.68366]
[1765657832944,0.00894925,3107.8,3107.7,4.89146]
[1765657844249,0.76264925,3107.8,3107.7,4.89146]
[1765657845137,0.00894925,3107.8,3107.7,4.89146]
[1765657846049,0.76264925,3107.8,3107.7,4.89146]
[1765657846547,0.00894925,3107.8,3107.7,4.89146]
[1765657846951,0.00894925,3107.8,3107.7,1.68366]
[1765657858258,0.00056974,3107.8,3107.7,1.68366]
[1765657866168,0.71122447,3108.1,3108.0,2.11794]
[1765657867163,0.71374146,3108.1,3108.0,2.11794]
[1765657868568,0.00734146,3108.1,3108.0,2.11794]
[1765657870972,0.71374146,3108.1,3108.0,2.11794]
[1765657874871,0.00734146,3108.1,3108.0,2.11794]
[1765657889077,0.76204146,3108.1,3108.0,2.11794]
[1765657889272,1.53374146,3108.1,3108.0,2.11794]
[1765657889469,0.76204146,3108.1,3108.0,2.11794]
[1765657890884,1.53374146,3108.1,3108.0,1.67544]
[1765657895780,1.53374146,3108.1,3108.0,0.90404]
[1765657895986,1.5264,3107.6,3107.5,1.4172]
[1765657896282,0.79472859,3107.6,3107.5,1.8396]
[1765657896678,0.79472859,3107.6,3107.5,2.00047]
[1765657897185,0.02302859,3107.6,3107.5,2.00047]
[1765657903092,0.79472859,3107.6,3107.5,2.00047]
[1765657903390,0.79472859,3107.6,3107.5,1.29687]
[1765657903787,0.79472859,3107.6,3107.5,2.00047]
[1765657907903,3.9625,3107.7,3107.6,1.57806]
[1765657909691,3.2078,3107.7,3107.6,1.57806]
[1765657909898,1.53374146,3108.1,3108.0,2.00044]
[1765657913006,4.74154146,3108.1,3108.0,2.00044]
[1765657921612,3.96984146,3108.1,3108.0,2.00044]
[1765657921807,3.21514146,3108.1,3108.0,2.00044]
[1765657922307,4.68834146,3108.1,3108.0,2.00044]
[1765657922506,4.68834146,3108.1,3108.0,0.16084]
[1765657927110,1.4732,3107.4,3107.3,1.45639804]
[1765657927311,4.681,3107.4,3107.3,0.86487804]
[1765657927508,4.681,3107.4,3107.3,0.16397804]
[1765657930315,0.7184,3106.6,3106.5,5.097]
[1765657930517,1.4732,3106.6,3106.5,5.097]
[1765657930714,0.7184,3106.6,3106.5,5.097]
[1765657931612,0.7184,3106.6,3106.5,5.10116464]
[1765657932620,1.4732,3106.6,3106.5,4.34876464]
[1765657933211,1.4732,3106.6,3106.5,5.10116464]
[1765657935116,1.4732,3106.6,3106.5,4.34876464]
[1765657935322,1.4732,3106.6,3106.5,0.00416464]
[1765657943425,1.4732,3106.6,3106.5,0.70506464]
[1765657943730,1.4732,3106.6,3106.5,1.45846464]
[1765657944829,1.4732,3106.6,3106.5,0.70506464]
[1765657946727,1.4732,3106.6,3106.5,0.86598464]
[1765657949930,1.4732,3106.6,3106.5,1.62878464]
[1765657952033,1.4732,3106.6,3106.5,0.86598464]
[1765657952429,1.4732,3106.6,3106.5,1.62878464]
[1765657954139,1.4732,3106.6,3106.5,0.86598464]
[1765657954834,1.4732,3106.6,3106.5,1.62878464]
[1765657958839,1.4732,3106.6,3106.5,2.09218464]
[1765657960149,3.2078,3106.9,3106.8,1.6386]
[1765657960435,3.9406,3106.9,3106.8,1.6386]
[1765657961041,4.6928,3106.9,3106.8,1.6386]
[1765657961235,4.6928,3106.9,3106.8,0.1609]
[1765657972340,1.485,3106.6,3106.5,0.00416464]
[1765657972641,1.485,3106.6,3106.5,0.71906464]
[1765657972845,1.485,3106.6,3106.5,1.48186464]
[1765657973243,1.485,3106.6,3106.5,0.71906464]
[1765657977047,1.485,3106.6,3106.5,0.00416464]
[1765657977734,1.485,3106.6,3106.5,0.76306464]
[1765657982548,1.485,3106.6,3106.5,1.46916464]
[1765657997949,1.485,3106.6,3106.5,1.91506464]
[1765658010687,1.485,3106.6,3106.5,0.00416464]
[1765658011579,1.485,3106.6,3106.5,0.75476464]
[1765658013679,51.485,3106.6,3106.5,0.75476464]
[1765658016386,66.396,3106.6,3106.5,0.75476464]
[1765658017982,66.396,3106.6,3106.5,0.91568464]
[1765658018183,66.396,3106.6,3106.5,2.11158464]
[1765658021393,64.38711912,3106.6,3106.5,2.11158464]
[1765658041509,64.38711912,3106.6,3106.5,1.33828464]
[1765658041715,64.38711912,3106.6,3106.5,0.91568464]
[1765658045211,49.47711912,3106.6,3106.5,0.91568464]
[1765658045413,64.38611912,3106.6,3106.5,2.07578464]